{"text_format":"1","workbook":"xlsx","n_sheets":1,"sheets":["Remont pokoi"],"not_rendered":{"charts":0,"images":1,"macros":1,"external_links":0,"defined_names":13,"comments":0,"pivot_tables":0},"unopened":[],"bounds":{"document_bytes":16777216,"sheet_cells":100000,"rows_first":2000,"rows_last":500,"rows_between":2000,"halvings":0,"cell_chars":16384,"cell_head_chars":4096},"cells_cut":0,"cells_raw":0,"read":"whole","date_system":"1900"}

{"sheet":"Remont pokoi","index":0,"n_rows":162,"n_cols":14,"rows_kept":162,"cut":false,"hidden":false,"merged":[[11,0,11,7],[4,0,4,1],[5,0,5,2],[6,0,6,2],[7,0,7,2],[8,0,8,2],[0,0,0,7],[4,10,5,10],[1,8,2,9],[9,0,9,2],[10,0,10,7],[1,0,1,7]]}
["Załącznik nr 5 do SWZ"]
["Podane w niniejszym formularzu ilości mają charakter pomocniczy i służą wyłącznie do porównania ofert. Wynagrodzenie Wykonawcy ma charakter ryczałtowy i obejmuje wykonanie całego zakresu przedmiotu zamówienia zgodnie z SWZ i OPZ, niezależnie od rzeczywistych ilości robót",null,null,null,null,null,null,null,"Utwórz PDF \ntylko w EXCEL"]
[]
[]
["Wykonawca:",null,null,null,null,null,null,null,null,null,"Pola edytowalne",null,null,"Załącznik nr 5 do SWZ"]
[]
[]
[]
[]
["FORMULARZ SPECYFIKACJI CENOWEJ"]
["Przystępując do udziału w postępowaniu o udzielenie zamówienia publicznego na roboty budowlane: \n - (CPV) 45000000-7 - Roboty budowlane\n- 45100000-8 - Przygotowanie terenu pod budowę\n- 45200000-9 - Roboty budowlane w zakresie wznoszenia kompletnych obiektów budowlanych lub ich części oraz roboty w zakresie inżynierii lądowej i wodnej\n- 45210000-2 - Roboty budowlane w zakresie budynków\n- 45211000-9 - Roboty budowlane w zakresie budownictwa wielorodzinnego i domów jednorodzinnych \n- 45211100-0 - Roboty budowlane w zakresie domów\n- 45211200-1 - Roboty budowlane w zakresie domów dla osób wymagających wsparcia \n- 45211300-2 - Roboty budowlane w zakresie budowy domów\nDla Domu pomocy Społecznej w Białymstoku przy ul. Świerkowej 9, DGO/341p-7/26, przeprowadzonym w trybie podstawowym, oferujemy wykonanie przedmiotu zamówienia w oparciu następujące ceny jednostkowe brutto:"]
["BUDOWA WOLNOSTOJACEJ ORANŻERII (OGRODU ZIMOWEGO) WRAZ INFRASTRUKTURĄ TECHNICZNĄ\n I ZAGOSPODAROWANIEM TERENU ORAZ ROZBIÓRKĄ BASENU"]
["Lp.","Przedmiot","Ilość ","Cena jedn. netto","Netto (kol.3xkol.4)","Kwota VAT","Brutto (kol.5+kol.6)","% VAT"]
["I.","Roboty przygotowawcze terenu budowy",null,null,{"$f":"Tabela1[[#This Row],[Cena jedn. netto]]*Tabela1[[#This Row],[Ilość ]]","v":0},{"$f":"Tabela1[[#This Row],[Netto (kol.3xkol.4)]]*Tabela1[[#This Row],[% VAT]]","v":0},{"$f":"Tabela1[[#This Row],[Kwota VAT]]+Tabela1[[#This Row],[Netto (kol.3xkol.4)]]","v":0}]
[{"$f":"ROW()-14","v":1},"Oznakowanie terenu budowy i miejsca składowania odpadów budowlanych",1,null,{"$f":"Tabela1[[#This Row],[Cena jedn. netto]]*Tabela1[[#This Row],[Ilość ]]","v":0},{"$f":"Tabela1[[#This Row],[Netto (kol.3xkol.4)]]*Tabela1[[#This Row],[% VAT]]","v":0},{"$f":"Tabela1[[#This Row],[Kwota VAT]]+Tabela1[[#This Row],[Netto (kol.3xkol.4)]]","v":0}]
[2,"Ogrodzenie tymczasowe placu budowy - słupki/stopy",12,null,{"$f":"Tabela1[[#This Row],[Cena jedn. netto]]*Tabela1[[#This Row],[Ilość ]]","v":0},{"$f":"Tabela1[[#This Row],[Netto (kol.3xkol.4)]]*Tabela1[[#This Row],[% VAT]]","v":0},{"$f":"Tabela1[[#This Row],[Kwota VAT]]+Tabela1[[#This Row],[Netto (kol.3xkol.4)]]","v":0}]
[3,"Ogrodzenie tymczasowe placu budowy - przęsła",27,null,{"$f":"Tabela1[[#This Row],[Cena jedn. netto]]*Tabela1[[#This Row],[Ilość ]]","v":0},{"$f":"Tabela1[[#This Row],[Netto (kol.3xkol.4)]]*Tabela1[[#This Row],[% VAT]]","v":0},{"$f":"Tabela1[[#This Row],[Kwota VAT]]+Tabela1[[#This Row],[Netto (kol.3xkol.4)]]","v":0}]
[4,"Zabezpieczenie komunikacji oraz obiektów narażonych na skutki robót budowlanych:\n- Zabezpieczenie dojść,\n- Oddzielenie części zagrożonych skutkiem robót\n- Oznakowanie ew. obejść",1,null,{"$f":"Tabela1[[#This Row],[Cena jedn. netto]]*Tabela1[[#This Row],[Ilość ]]","v":0},{"$f":"Tabela1[[#This Row],[Netto (kol.3xkol.4)]]*Tabela1[[#This Row],[% VAT]]","v":0},{"$f":"Tabela1[[#This Row],[Kwota VAT]]+Tabela1[[#This Row],[Netto (kol.3xkol.4)]]","v":0}]
[5,"Usunięcie warstwy ziemi urodzajnej o grubości do 15 cm za pomocą spycharek z usunięciem niskiej zieleni",235.74700000000001,null,{"$f":"Tabela1[[#This Row],[Cena jedn. netto]]*Tabela1[[#This Row],[Ilość ]]","v":0},{"$f":"Tabela1[[#This Row],[Netto (kol.3xkol.4)]]*Tabela1[[#This Row],[% VAT]]","v":0},{"$f":"Tabela1[[#This Row],[Kwota VAT]]+Tabela1[[#This Row],[Netto (kol.3xkol.4)]]","v":0}]
[6,"Roboty ziemne wykonywane koparkami podsiębiernymi o poj. łyżki 0.40 m3 w gruncie kat. I-II z transportem urobku samochodami samowyładowczymi na odległość 30 km",14.03,null,{"$f":"Tabela1[[#This Row],[Cena jedn. netto]]*Tabela1[[#This Row],[Ilość ]]","v":0},{"$f":"Tabela1[[#This Row],[Netto (kol.3xkol.4)]]*Tabela1[[#This Row],[% VAT]]","v":0},{"$f":"Tabela1[[#This Row],[Kwota VAT]]+Tabela1[[#This Row],[Netto (kol.3xkol.4)]]","v":0}]
[7,"Rozbiórka czapek",27.6,null,{"$f":"Tabela1[[#This Row],[Cena jedn. netto]]*Tabela1[[#This Row],[Ilość ]]","v":0},{"$f":"Tabela1[[#This Row],[Netto (kol.3xkol.4)]]*Tabela1[[#This Row],[% VAT]]","v":0},{"$f":"Tabela1[[#This Row],[Kwota VAT]]+Tabela1[[#This Row],[Netto (kol.3xkol.4)]]","v":0}]
[8,"Rozebranie ścian żelbetowych o grubości do 40 cm",14.352,null,{"$f":"Tabela1[[#This Row],[Cena jedn. netto]]*Tabela1[[#This Row],[Ilość ]]","v":0},{"$f":"Tabela1[[#This Row],[Netto (kol.3xkol.4)]]*Tabela1[[#This Row],[% VAT]]","v":0},{"$f":"Tabela1[[#This Row],[Kwota VAT]]+Tabela1[[#This Row],[Netto (kol.3xkol.4)]]","v":0}]
[9,"Rozebranie niecki żelbetowej",15,null,{"$f":"Tabela1[[#This Row],[Cena jedn. netto]]*Tabela1[[#This Row],[Ilość ]]","v":0},{"$f":"Tabela1[[#This Row],[Netto (kol.3xkol.4)]]*Tabela1[[#This Row],[% VAT]]","v":0},{"$f":"Tabela1[[#This Row],[Kwota VAT]]+Tabela1[[#This Row],[Netto (kol.3xkol.4)]]","v":0}]
[10,"Rozebranie podłoża z betonu podestów o grubości do 15 cm",5.843,null,{"$f":"Tabela1[[#This Row],[Cena jedn. netto]]*Tabela1[[#This Row],[Ilość ]]","v":0},{"$f":"Tabela1[[#This Row],[Netto (kol.3xkol.4)]]*Tabela1[[#This Row],[% VAT]]","v":0},{"$f":"Tabela1[[#This Row],[Kwota VAT]]+Tabela1[[#This Row],[Netto (kol.3xkol.4)]]","v":0}]
[11,"Rozebranie nawierzchni na podsypce cementowo-piaskowej",128,null,{"$f":"Tabela1[[#This Row],[Cena jedn. netto]]*Tabela1[[#This Row],[Ilość ]]","v":0},{"$f":"Tabela1[[#This Row],[Netto (kol.3xkol.4)]]*Tabela1[[#This Row],[% VAT]]","v":0},{"$f":"Tabela1[[#This Row],[Kwota VAT]]+Tabela1[[#This Row],[Netto (kol.3xkol.4)]]","v":0}]
[12,"Załadowanie gruzu koparko-ładowarką przy obsłudze na zmianę roboczą przez 3 samochody samowyładowcze",47.399000000000001,null,{"$f":"Tabela1[[#This Row],[Cena jedn. netto]]*Tabela1[[#This Row],[Ilość ]]","v":0},{"$f":"Tabela1[[#This Row],[Netto (kol.3xkol.4)]]*Tabela1[[#This Row],[% VAT]]","v":0},{"$f":"Tabela1[[#This Row],[Kwota VAT]]+Tabela1[[#This Row],[Netto (kol.3xkol.4)]]","v":0}]
[13,"Wywiezienie gruzu z terenu rozbiórki przy mechanicznym załadowaniu i wyładowaniu samochodem samowyładowczym na odległość 20 km",47.399000000000001,null,{"$f":"Tabela1[[#This Row],[Cena jedn. netto]]*Tabela1[[#This Row],[Ilość ]]","v":0},{"$f":"Tabela1[[#This Row],[Netto (kol.3xkol.4)]]*Tabela1[[#This Row],[% VAT]]","v":0},{"$f":"Tabela1[[#This Row],[Kwota VAT]]+Tabela1[[#This Row],[Netto (kol.3xkol.4)]]","v":0}]
[14,"Składowanie wywóz i utylizacja odpadów budowlanych w kontenerach o poj. 7m3",2,null,{"$f":"Tabela1[[#This Row],[Cena jedn. netto]]*Tabela1[[#This Row],[Ilość ]]","v":0},{"$f":"Tabela1[[#This Row],[Netto (kol.3xkol.4)]]*Tabela1[[#This Row],[% VAT]]","v":0},{"$f":"Tabela1[[#This Row],[Kwota VAT]]+Tabela1[[#This Row],[Netto (kol.3xkol.4)]]","v":0}]
["II.","Roboty geodezycje",null,null,{"$f":"Tabela1[[#This Row],[Cena jedn. netto]]*Tabela1[[#This Row],[Ilość ]]","v":0},{"$f":"Tabela1[[#This Row],[Netto (kol.3xkol.4)]]*Tabela1[[#This Row],[% VAT]]","v":0},{"$f":"Tabela1[[#This Row],[Kwota VAT]]+Tabela1[[#This Row],[Netto (kol.3xkol.4)]]","v":0}]
[{"$f":"ROW()-15","v":15},"Pomiary przy wykopach fundamentowych w terenie równinnym i nizinnym",37.631999999999998,null,{"$f":"Tabela1[[#This Row],[Cena jedn. netto]]*Tabela1[[#This Row],[Ilość ]]","v":0},{"$f":"Tabela1[[#This Row],[Netto (kol.3xkol.4)]]*Tabela1[[#This Row],[% VAT]]","v":0},{"$f":"Tabela1[[#This Row],[Kwota VAT]]+Tabela1[[#This Row],[Netto (kol.3xkol.4)]]","v":0}]
[{"$f":"ROW()-15","v":16},"Roboty pomiarowe przy powierzchniowych robotach ziemnych - inwentaryzacja powykonawcza",0.503,null,{"$f":"Tabela1[[#This Row],[Cena jedn. netto]]*Tabela1[[#This Row],[Ilość ]]","v":0},{"$f":"Tabela1[[#This Row],[Netto (kol.3xkol.4)]]*Tabela1[[#This Row],[% VAT]]","v":0},{"$f":"Tabela1[[#This Row],[Kwota VAT]]+Tabela1[[#This Row],[Netto (kol.3xkol.4)]]","v":0}]
["III.","Roboty ziemne - wykop",null,null,{"$f":"Tabela1[[#This Row],[Cena jedn. netto]]*Tabela1[[#This Row],[Ilość ]]","v":0},{"$f":"Tabela1[[#This Row],[Netto (kol.3xkol.4)]]*Tabela1[[#This Row],[% VAT]]","v":0},{"$f":"Tabela1[[#This Row],[Kwota VAT]]+Tabela1[[#This Row],[Netto (kol.3xkol.4)]]","v":0}]
[{"$f":"ROW()-16","v":17},"Roboty ziemne wykonywane koparkami podsiębiernymi o poj. łyżki 0.40 m3 w gruncie kat. I-II z transportem urobku samochodami samowyładowczymi na odległość 30 km",12,null,{"$f":"Tabela1[[#This Row],[Cena jedn. netto]]*Tabela1[[#This Row],[Ilość ]]","v":0},{"$f":"Tabela1[[#This Row],[Netto (kol.3xkol.4)]]*Tabela1[[#This Row],[% VAT]]","v":0},{"$f":"Tabela1[[#This Row],[Kwota VAT]]+Tabela1[[#This Row],[Netto (kol.3xkol.4)]]","v":0}]
["IV.","Roboty konstrukcyjne",null,null,{"$f":"Tabela1[[#This Row],[Cena jedn. netto]]*Tabela1[[#This Row],[Ilość ]]","v":0},{"$f":"Tabela1[[#This Row],[Netto (kol.3xkol.4)]]*Tabela1[[#This Row],[% VAT]]","v":0},{"$f":"Tabela1[[#This Row],[Kwota VAT]]+Tabela1[[#This Row],[Netto (kol.3xkol.4)]]","v":0}]
["IV. 1","Ławy i stopy fundamentowe",null,null,{"$f":"Tabela1[[#This Row],[Cena jedn. netto]]*Tabela1[[#This Row],[Ilość ]]","v":0},{"$f":"Tabela1[[#This Row],[Netto (kol.3xkol.4)]]*Tabela1[[#This Row],[% VAT]]","v":0},{"$f":"Tabela1[[#This Row],[Kwota VAT]]+Tabela1[[#This Row],[Netto (kol.3xkol.4)]]","v":0}]
[{"$f":"ROW()-18","v":18},"Betonowanie podkładu pod ławy fundamentowe\n- Chudy beton C8/10 gr. 10cm",1.4810000000000001,null,{"$f":"Tabela1[[#This Row],[Cena jedn. netto]]*Tabela1[[#This Row],[Ilość ]]","v":0},{"$f":"Tabela1[[#This Row],[Netto (kol.3xkol.4)]]*Tabela1[[#This Row],[% VAT]]","v":0},{"$f":"Tabela1[[#This Row],[Kwota VAT]]+Tabela1[[#This Row],[Netto (kol.3xkol.4)]]","v":0}]
[{"$f":"ROW()-18","v":19},"Deskowanie systemowe drobnowymiarowe ław fundamentowych żelbetowych",13.6,null,{"$f":"Tabela1[[#This Row],[Cena jedn. netto]]*Tabela1[[#This Row],[Ilość ]]","v":0},{"$f":"Tabela1[[#This Row],[Netto (kol.3xkol.4)]]*Tabela1[[#This Row],[% VAT]]","v":0},{"$f":"Tabela1[[#This Row],[Kwota VAT]]+Tabela1[[#This Row],[Netto (kol.3xkol.4)]]","v":0}]
[20,"Deskowanie systemowe drobnowymiarowe stóp\nfundamentowych żelbetowych",6.4,null,{"$f":"Tabela1[[#This Row],[Cena jedn. netto]]*Tabela1[[#This Row],[Ilość ]]","v":0},{"$f":"Tabela1[[#This Row],[Netto (kol.3xkol.4)]]*Tabela1[[#This Row],[% VAT]]","v":0},{"$f":"Tabela1[[#This Row],[Kwota VAT]]+Tabela1[[#This Row],[Netto (kol.3xkol.4)]]","v":0}]
[21,"Zbrojenie konstrukcji monolitycznych prętami stalowymi okrągłymi gładkimi o śr. do 14 mm\n- B500A  fi6",0.109,null,{"$f":"Tabela1[[#This Row],[Cena jedn. netto]]*Tabela1[[#This Row],[Ilość ]]","v":0},{"$f":"Tabela1[[#This Row],[Netto (kol.3xkol.4)]]*Tabela1[[#This Row],[% VAT]]","v":0},{"$f":"Tabela1[[#This Row],[Kwota VAT]]+Tabela1[[#This Row],[Netto (kol.3xkol.4)]]","v":0}]
[22,"Zbrojenie konstrukcji monolitycznych prętami stalowymi okrągłymi żebrowanymi o śr. do 14 mm\n- B500SP  fi12",0.20200000000000001,null,{"$f":"Tabela1[[#This Row],[Cena jedn. netto]]*Tabela1[[#This Row],[Ilość ]]","v":0},{"$f":"Tabela1[[#This Row],[Netto (kol.3xkol.4)]]*Tabela1[[#This Row],[% VAT]]","v":0},{"$f":"Tabela1[[#This Row],[Kwota VAT]]+Tabela1[[#This Row],[Netto (kol.3xkol.4)]]","v":0}]
[23,"Betonowanie ław i stóp fundamentowych zbrojonych w deskowaniu systemowym drobnowymiarowym z transportem betonu pompą\n- Beton C25/30",5.84,null,{"$f":"Tabela1[[#This Row],[Cena jedn. netto]]*Tabela1[[#This Row],[Ilość ]]","v":0},{"$f":"Tabela1[[#This Row],[Netto (kol.3xkol.4)]]*Tabela1[[#This Row],[% VAT]]","v":0},{"$f":"Tabela1[[#This Row],[Kwota VAT]]+Tabela1[[#This Row],[Netto (kol.3xkol.4)]]","v":0}]
["IV. 2","Słupy/trzpienie",null,null,{"$f":"Tabela1[[#This Row],[Cena jedn. netto]]*Tabela1[[#This Row],[Ilość ]]","v":0},{"$f":"Tabela1[[#This Row],[Netto (kol.3xkol.4)]]*Tabela1[[#This Row],[% VAT]]","v":0},{"$f":"Tabela1[[#This Row],[Kwota VAT]]+Tabela1[[#This Row],[Netto (kol.3xkol.4)]]","v":0}]
[{"$f":"ROW()-19","v":24},"Deskowanie systemowe drobnowymiarowe słupów\nprostokątnych",12.74,null,{"$f":"Tabela1[[#This Row],[Cena jedn. netto]]*Tabela1[[#This Row],[Ilość ]]","v":0},{"$f":"Tabela1[[#This Row],[Netto (kol.3xkol.4)]]*Tabela1[[#This Row],[% VAT]]","v":0},{"$f":"Tabela1[[#This Row],[Kwota VAT]]+Tabela1[[#This Row],[Netto (kol.3xkol.4)]]","v":0}]
[{"$f":"ROW()-19","v":25},"Zbrojenie konstrukcji monolitycznych prętami stalowymi okrągłymi gładkimi o śr. do 14 mm\n- A0 St0S-b  fi6",0.01,null,{"$f":"Tabela1[[#This Row],[Cena jedn. netto]]*Tabela1[[#This Row],[Ilość ]]","v":0},{"$f":"Tabela1[[#This Row],[Netto (kol.3xkol.4)]]*Tabela1[[#This Row],[% VAT]]","v":0},{"$f":"Tabela1[[#This Row],[Kwota VAT]]+Tabela1[[#This Row],[Netto (kol.3xkol.4)]]","v":0}]
[26,"Zbrojenie konstrukcji monolitycznych prętami stalowymi okrągłymi żebrowanymi o śr. do 14 mm\n- AIIIN RB500W  fi12",1.4E-2,null,{"$f":"Tabela1[[#This Row],[Cena jedn. netto]]*Tabela1[[#This Row],[Ilość ]]","v":0},{"$f":"Tabela1[[#This Row],[Netto (kol.3xkol.4)]]*Tabela1[[#This Row],[% VAT]]","v":0},{"$f":"Tabela1[[#This Row],[Kwota VAT]]+Tabela1[[#This Row],[Netto (kol.3xkol.4)]]","v":0}]
[27,"Betonowanie słupów prostokątnych zbrojonych w deskowaniu systemowym drobnowymiarowym z transportem betonu pompą\n- Beton C20/25",0.95499999999999996,null,{"$f":"Tabela1[[#This Row],[Cena jedn. netto]]*Tabela1[[#This Row],[Ilość ]]","v":0},{"$f":"Tabela1[[#This Row],[Netto (kol.3xkol.4)]]*Tabela1[[#This Row],[% VAT]]","v":0},{"$f":"Tabela1[[#This Row],[Kwota VAT]]+Tabela1[[#This Row],[Netto (kol.3xkol.4)]]","v":0}]
["IV. 3","Ściany fundamentowe",null,null,{"$f":"Tabela1[[#This Row],[Cena jedn. netto]]*Tabela1[[#This Row],[Ilość ]]","v":0},{"$f":"Tabela1[[#This Row],[Netto (kol.3xkol.4)]]*Tabela1[[#This Row],[% VAT]]","v":0},{"$f":"Tabela1[[#This Row],[Kwota VAT]]+Tabela1[[#This Row],[Netto (kol.3xkol.4)]]","v":0}]
[{"$f":"ROW()-20","v":28},"Izolacje przeciwwilgociowe dwiema warstwami papy na lepiku na gorąco ław fundamentowych betonowych",12,null,{"$f":"Tabela1[[#This Row],[Cena jedn. netto]]*Tabela1[[#This Row],[Ilość ]]","v":0},{"$f":"Tabela1[[#This Row],[Netto (kol.3xkol.4)]]*Tabela1[[#This Row],[% VAT]]","v":0},{"$f":"Tabela1[[#This Row],[Kwota VAT]]+Tabela1[[#This Row],[Netto (kol.3xkol.4)]]","v":0}]
[{"$f":"ROW()-20","v":29},"Fundamenty z bloczków betonowych na zaprawie cementowej",2.4,null,{"$f":"Tabela1[[#This Row],[Cena jedn. netto]]*Tabela1[[#This Row],[Ilość ]]","v":0},{"$f":"Tabela1[[#This Row],[Netto (kol.3xkol.4)]]*Tabela1[[#This Row],[% VAT]]","v":0},{"$f":"Tabela1[[#This Row],[Kwota VAT]]+Tabela1[[#This Row],[Netto (kol.3xkol.4)]]","v":0}]
[30,"Izolacje przeciwwilgociowe powłokowe bitumiczne pionowe - wykonywane na zimno z roztworu asfaltowego-kauczukowego - pierwsza warstwa",31.5,null,{"$f":"Tabela1[[#This Row],[Cena jedn. netto]]*Tabela1[[#This Row],[Ilość ]]","v":0},{"$f":"Tabela1[[#This Row],[Netto (kol.3xkol.4)]]*Tabela1[[#This Row],[% VAT]]","v":0},{"$f":"Tabela1[[#This Row],[Kwota VAT]]+Tabela1[[#This Row],[Netto (kol.3xkol.4)]]","v":0}]
[31,"Izolacje przeciwwilgociowe powłokowe bitumiczne pionowe - wykonywane na zimno z roztworu asfaltowego-kauczukowego - druga i następna warstwa\nKrotność = 2",31.5,null,{"$f":"Tabela1[[#This Row],[Cena jedn. netto]]*Tabela1[[#This Row],[Ilość ]]","v":0},{"$f":"Tabela1[[#This Row],[Netto (kol.3xkol.4)]]*Tabela1[[#This Row],[% VAT]]","v":0},{"$f":"Tabela1[[#This Row],[Kwota VAT]]+Tabela1[[#This Row],[Netto (kol.3xkol.4)]]","v":0}]
[32,"Izolacje cieplne z płyt styropianowych pionowe\n- XPS 300 gr. 5cm frezowany",18.04,null,{"$f":"Tabela1[[#This Row],[Cena jedn. netto]]*Tabela1[[#This Row],[Ilość ]]","v":0},{"$f":"Tabela1[[#This Row],[Netto (kol.3xkol.4)]]*Tabela1[[#This Row],[% VAT]]","v":0},{"$f":"Tabela1[[#This Row],[Kwota VAT]]+Tabela1[[#This Row],[Netto (kol.3xkol.4)]]","v":0}]
[33,"Izolacje pionowe ścian fund. z folii kubełkowych.",18.04,null,{"$f":"Tabela1[[#This Row],[Cena jedn. netto]]*Tabela1[[#This Row],[Ilość ]]","v":0},{"$f":"Tabela1[[#This Row],[Netto (kol.3xkol.4)]]*Tabela1[[#This Row],[% VAT]]","v":0},{"$f":"Tabela1[[#This Row],[Kwota VAT]]+Tabela1[[#This Row],[Netto (kol.3xkol.4)]]","v":0}]
["IV. 4","Wieńce",null,null,{"$f":"Tabela1[[#This Row],[Cena jedn. netto]]*Tabela1[[#This Row],[Ilość ]]","v":0},{"$f":"Tabela1[[#This Row],[Netto (kol.3xkol.4)]]*Tabela1[[#This Row],[% VAT]]","v":0},{"$f":"Tabela1[[#This Row],[Kwota VAT]]+Tabela1[[#This Row],[Netto (kol.3xkol.4)]]","v":0}]
[{"$f":"ROW()-21","v":34},"Deskowanie systemowe drobnowymiarowe belek podciągów i wieńców",10,null,{"$f":"Tabela1[[#This Row],[Cena jedn. netto]]*Tabela1[[#This Row],[Ilość ]]","v":0},{"$f":"Tabela1[[#This Row],[Netto (kol.3xkol.4)]]*Tabela1[[#This Row],[% VAT]]","v":0},{"$f":"Tabela1[[#This Row],[Kwota VAT]]+Tabela1[[#This Row],[Netto (kol.3xkol.4)]]","v":0}]
[{"$f":"ROW()-21","v":35},"Zbrojenie konstrukcji monolitycznych prętami stalowymi okrągłymi gładkimi o śr. do 14 mm\n- A0 St0S-b  fi6",2.5000000000000001E-2,null,{"$f":"Tabela1[[#This Row],[Cena jedn. netto]]*Tabela1[[#This Row],[Ilość ]]","v":0},{"$f":"Tabela1[[#This Row],[Netto (kol.3xkol.4)]]*Tabela1[[#This Row],[% VAT]]","v":0},{"$f":"Tabela1[[#This Row],[Kwota VAT]]+Tabela1[[#This Row],[Netto (kol.3xkol.4)]]","v":0}]
[36,"Zbrojenie konstrukcji monolitycznych prętami stalowymi okrągłymi żebrowanymi o śr. do 14 mm\n- AIIIN RB500W  fi12",4.3999999999999997E-2,null,{"$f":"Tabela1[[#This Row],[Cena jedn. netto]]*Tabela1[[#This Row],[Ilość ]]","v":0},{"$f":"Tabela1[[#This Row],[Netto (kol.3xkol.4)]]*Tabela1[[#This Row],[% VAT]]","v":0},{"$f":"Tabela1[[#This Row],[Kwota VAT]]+Tabela1[[#This Row],[Netto (kol.3xkol.4)]]","v":0}]
[37,"Betonowanie belek podciągów i wieńców zbrojonych w deskowaniu systemowym drobnowymiarowym z transportem betonu pompą\n- Beton C20/25",1.25,null,{"$f":"Tabela1[[#This Row],[Cena jedn. netto]]*Tabela1[[#This Row],[Ilość ]]","v":0},{"$f":"Tabela1[[#This Row],[Netto (kol.3xkol.4)]]*Tabela1[[#This Row],[% VAT]]","v":0},{"$f":"Tabela1[[#This Row],[Kwota VAT]]+Tabela1[[#This Row],[Netto (kol.3xkol.4)]]","v":0}]
["IV. 5","Mury",null,null,{"$f":"Tabela1[[#This Row],[Cena jedn. netto]]*Tabela1[[#This Row],[Ilość ]]","v":0},{"$f":"Tabela1[[#This Row],[Netto (kol.3xkol.4)]]*Tabela1[[#This Row],[% VAT]]","v":0},{"$f":"Tabela1[[#This Row],[Kwota VAT]]+Tabela1[[#This Row],[Netto (kol.3xkol.4)]]","v":0}]
[{"$f":"ROW()-22","v":38},"Izolacje przeciwwilgociowe dwiema warstwami papy na lepiku na gorąco ław fundamentowych betonowych",5,null,{"$f":"Tabela1[[#This Row],[Cena jedn. netto]]*Tabela1[[#This Row],[Ilość ]]","v":0},{"$f":"Tabela1[[#This Row],[Netto (kol.3xkol.4)]]*Tabela1[[#This Row],[% VAT]]","v":0},{"$f":"Tabela1[[#This Row],[Kwota VAT]]+Tabela1[[#This Row],[Netto (kol.3xkol.4)]]","v":0}]
[{"$f":"ROW()-22","v":39},"Ściany budynków jednokondygnacyjnych o wysokości do 4.5 m z bloczków z betonu komórkowego grubości 24 cm",8.3409999999999993,null,{"$f":"Tabela1[[#This Row],[Cena jedn. netto]]*Tabela1[[#This Row],[Ilość ]]","v":0},{"$f":"Tabela1[[#This Row],[Netto (kol.3xkol.4)]]*Tabela1[[#This Row],[% VAT]]","v":0},{"$f":"Tabela1[[#This Row],[Kwota VAT]]+Tabela1[[#This Row],[Netto (kol.3xkol.4)]]","v":0}]
[40,"Dodatkowe nakłady na murowanie pierwszej warstwy\nz bloków podstawowych gr. 24 cm dla ścian na zaprawie murarskiej do cienkich spoin",16.04,null,{"$f":"Tabela1[[#This Row],[Cena jedn. netto]]*Tabela1[[#This Row],[Ilość ]]","v":0},{"$f":"Tabela1[[#This Row],[Netto (kol.3xkol.4)]]*Tabela1[[#This Row],[% VAT]]","v":0},{"$f":"Tabela1[[#This Row],[Kwota VAT]]+Tabela1[[#This Row],[Netto (kol.3xkol.4)]]","v":0}]
["V. 6","Strop",null,null,{"$f":"Tabela1[[#This Row],[Cena jedn. netto]]*Tabela1[[#This Row],[Ilość ]]","v":0},{"$f":"Tabela1[[#This Row],[Netto (kol.3xkol.4)]]*Tabela1[[#This Row],[% VAT]]","v":0},{"$f":"Tabela1[[#This Row],[Kwota VAT]]+Tabela1[[#This Row],[Netto (kol.3xkol.4)]]","v":0}]
[{"$f":"ROW()-23","v":41},"Deskowanie systemowe drobnowymiarowe płyt stropowych",19.440000000000001,null,{"$f":"Tabela1[[#This Row],[Cena jedn. netto]]*Tabela1[[#This Row],[Ilość ]]","v":0},{"$f":"Tabela1[[#This Row],[Netto (kol.3xkol.4)]]*Tabela1[[#This Row],[% VAT]]","v":0},{"$f":"Tabela1[[#This Row],[Kwota VAT]]+Tabela1[[#This Row],[Netto (kol.3xkol.4)]]","v":0}]
[{"$f":"ROW()-23","v":42},"Zbrojenie konstrukcji monolitycznych prętami stalowymi okrągłymi żebrowanymi o śr. do 14 mm\n- AIIIN RB500W  fi12",0.41299999999999998,null,{"$f":"Tabela1[[#This Row],[Cena jedn. netto]]*Tabela1[[#This Row],[Ilość ]]","v":0},{"$f":"Tabela1[[#This Row],[Netto (kol.3xkol.4)]]*Tabela1[[#This Row],[% VAT]]","v":0},{"$f":"Tabela1[[#This Row],[Kwota VAT]]+Tabela1[[#This Row],[Netto (kol.3xkol.4)]]","v":0}]
[43,"Betonowanie płyt stropowych zbrojonych w deskowaniu systemowym drobnowymiarowym z transportem betonu pompą\n- Beton C20/25",4.8600000000000003,null,{"$f":"Tabela1[[#This Row],[Cena jedn. netto]]*Tabela1[[#This Row],[Ilość ]]","v":0},{"$f":"Tabela1[[#This Row],[Netto (kol.3xkol.4)]]*Tabela1[[#This Row],[% VAT]]","v":0},{"$f":"Tabela1[[#This Row],[Kwota VAT]]+Tabela1[[#This Row],[Netto (kol.3xkol.4)]]","v":0}]
["VI.","Roboty ziemne - zasypy",null,null,{"$f":"Tabela1[[#This Row],[Cena jedn. netto]]*Tabela1[[#This Row],[Ilość ]]","v":0},{"$f":"Tabela1[[#This Row],[Netto (kol.3xkol.4)]]*Tabela1[[#This Row],[% VAT]]","v":0},{"$f":"Tabela1[[#This Row],[Kwota VAT]]+Tabela1[[#This Row],[Netto (kol.3xkol.4)]]","v":0}]
[{"$f":"ROW()-24","v":44},"Zasypywanie wykopów spycharkami z przemieszczeniem gruntu na odległość do 10 m w gruncie kat. I-III",88.144999999999996,null,{"$f":"Tabela1[[#This Row],[Cena jedn. netto]]*Tabela1[[#This Row],[Ilość ]]","v":0},{"$f":"Tabela1[[#This Row],[Netto (kol.3xkol.4)]]*Tabela1[[#This Row],[% VAT]]","v":0},{"$f":"Tabela1[[#This Row],[Kwota VAT]]+Tabela1[[#This Row],[Netto (kol.3xkol.4)]]","v":0}]
[{"$f":"ROW()-24","v":45},"Warstwa wzmacniająca grunt pod warstwy\ntechnologiczne z geowłókniny PP 150-200 g/m2",25,null,{"$f":"Tabela1[[#This Row],[Cena jedn. netto]]*Tabela1[[#This Row],[Ilość ]]","v":0},{"$f":"Tabela1[[#This Row],[Netto (kol.3xkol.4)]]*Tabela1[[#This Row],[% VAT]]","v":0},{"$f":"Tabela1[[#This Row],[Kwota VAT]]+Tabela1[[#This Row],[Netto (kol.3xkol.4)]]","v":0}]
[46,"Podkłady z ubitych materiałów sypkich na podłożu gruntowym - piasek średni zagęszczony ID = 0,95\n- Grubość warstwy 10cm",2.5,null,{"$f":"Tabela1[[#This Row],[Cena jedn. netto]]*Tabela1[[#This Row],[Ilość ]]","v":0},{"$f":"Tabela1[[#This Row],[Netto (kol.3xkol.4)]]*Tabela1[[#This Row],[% VAT]]","v":0},{"$f":"Tabela1[[#This Row],[Kwota VAT]]+Tabela1[[#This Row],[Netto (kol.3xkol.4)]]","v":0}]
["VII.","Stolarka zewnętrzna",null,null,{"$f":"Tabela1[[#This Row],[Cena jedn. netto]]*Tabela1[[#This Row],[Ilość ]]","v":0},{"$f":"Tabela1[[#This Row],[Netto (kol.3xkol.4)]]*Tabela1[[#This Row],[% VAT]]","v":0},{"$f":"Tabela1[[#This Row],[Kwota VAT]]+Tabela1[[#This Row],[Netto (kol.3xkol.4)]]","v":0}]
[{"$f":"ROW()-25","v":47},"Dostarczenie i montaż witryn zachodniej i wschodniej\n- O1a",25.5,null,{"$f":"Tabela1[[#This Row],[Cena jedn. netto]]*Tabela1[[#This Row],[Ilość ]]","v":0},{"$f":"Tabela1[[#This Row],[Netto (kol.3xkol.4)]]*Tabela1[[#This Row],[% VAT]]","v":0},{"$f":"Tabela1[[#This Row],[Kwota VAT]]+Tabela1[[#This Row],[Netto (kol.3xkol.4)]]","v":0}]
[{"$f":"ROW()-25","v":48},"Dostarczenie i montaż witryn północnej i południowej wschodniej - O2a i O2b wraz z drzwiami Dw1",27.361000000000001,null,{"$f":"Tabela1[[#This Row],[Cena jedn. netto]]*Tabela1[[#This Row],[Ilość ]]","v":0},{"$f":"Tabela1[[#This Row],[Netto (kol.3xkol.4)]]*Tabela1[[#This Row],[% VAT]]","v":0},{"$f":"Tabela1[[#This Row],[Kwota VAT]]+Tabela1[[#This Row],[Netto (kol.3xkol.4)]]","v":0}]
[49,"Dostarczenie i montaż świetlika wraz ze skrzydłami wentylującymi",19.375,null,{"$f":"Tabela1[[#This Row],[Cena jedn. netto]]*Tabela1[[#This Row],[Ilość ]]","v":0},{"$f":"Tabela1[[#This Row],[Netto (kol.3xkol.4)]]*Tabela1[[#This Row],[% VAT]]","v":0},{"$f":"Tabela1[[#This Row],[Kwota VAT]]+Tabela1[[#This Row],[Netto (kol.3xkol.4)]]","v":0}]
[50,"Osadzenie parapetów z kamienia impregnowanego gr. 30mm",21,null,{"$f":"Tabela1[[#This Row],[Cena jedn. netto]]*Tabela1[[#This Row],[Ilość ]]","v":0},{"$f":"Tabela1[[#This Row],[Netto (kol.3xkol.4)]]*Tabela1[[#This Row],[% VAT]]","v":0},{"$f":"Tabela1[[#This Row],[Kwota VAT]]+Tabela1[[#This Row],[Netto (kol.3xkol.4)]]","v":0}]
["VIII.","Elewacja",null,null,{"$f":"Tabela1[[#This Row],[Cena jedn. netto]]*Tabela1[[#This Row],[Ilość ]]","v":0},{"$f":"Tabela1[[#This Row],[Netto (kol.3xkol.4)]]*Tabela1[[#This Row],[% VAT]]","v":0},{"$f":"Tabela1[[#This Row],[Kwota VAT]]+Tabela1[[#This Row],[Netto (kol.3xkol.4)]]","v":0}]
["VIII. 1","Izolacja",null,null,{"$f":"Tabela1[[#This Row],[Cena jedn. netto]]*Tabela1[[#This Row],[Ilość ]]","v":0},{"$f":"Tabela1[[#This Row],[Netto (kol.3xkol.4)]]*Tabela1[[#This Row],[% VAT]]","v":0},{"$f":"Tabela1[[#This Row],[Kwota VAT]]+Tabela1[[#This Row],[Netto (kol.3xkol.4)]]","v":0}]
[{"$f":"ROW()-27","v":51},"Przyklejenie płyt styropianowych na ścianach\n- Styropian fasadowy gr. 5 cm",8.1180000000000003,null,{"$f":"Tabela1[[#This Row],[Cena jedn. netto]]*Tabela1[[#This Row],[Ilość ]]","v":0},{"$f":"Tabela1[[#This Row],[Netto (kol.3xkol.4)]]*Tabela1[[#This Row],[% VAT]]","v":0},{"$f":"Tabela1[[#This Row],[Kwota VAT]]+Tabela1[[#This Row],[Netto (kol.3xkol.4)]]","v":0}]
[{"$f":"ROW()-27","v":52},"Przyklejenie płyt styropianowych gr 2cm na słupach o szerokości do 30 cm",5.0999999999999996,null,{"$f":"Tabela1[[#This Row],[Cena jedn. netto]]*Tabela1[[#This Row],[Ilość ]]","v":0},{"$f":"Tabela1[[#This Row],[Netto (kol.3xkol.4)]]*Tabela1[[#This Row],[% VAT]]","v":0},{"$f":"Tabela1[[#This Row],[Kwota VAT]]+Tabela1[[#This Row],[Netto (kol.3xkol.4)]]","v":0}]
[53,"Przyklejenie płyt styropianowych gr 5cm na słupach o szerokości do 15cm",1.9379999999999999,null,{"$f":"Tabela1[[#This Row],[Cena jedn. netto]]*Tabela1[[#This Row],[Ilość ]]","v":0},{"$f":"Tabela1[[#This Row],[Netto (kol.3xkol.4)]]*Tabela1[[#This Row],[% VAT]]","v":0},{"$f":"Tabela1[[#This Row],[Kwota VAT]]+Tabela1[[#This Row],[Netto (kol.3xkol.4)]]","v":0}]
[54,"Przyklejenie płyt styropianowych gr 3cm na powierzchniach sufitowych",7.056,null,{"$f":"Tabela1[[#This Row],[Cena jedn. netto]]*Tabela1[[#This Row],[Ilość ]]","v":0},{"$f":"Tabela1[[#This Row],[Netto (kol.3xkol.4)]]*Tabela1[[#This Row],[% VAT]]","v":0},{"$f":"Tabela1[[#This Row],[Kwota VAT]]+Tabela1[[#This Row],[Netto (kol.3xkol.4)]]","v":0}]
[55,"Mocowanie warstwy izolacyjnej za pomocą łączników mechanicznych w ilości 4 szt/m2 do podłoża z\ngazobetonu",8.1180000000000003,null,{"$f":"Tabela1[[#This Row],[Cena jedn. netto]]*Tabela1[[#This Row],[Ilość ]]","v":0},{"$f":"Tabela1[[#This Row],[Netto (kol.3xkol.4)]]*Tabela1[[#This Row],[% VAT]]","v":0},{"$f":"Tabela1[[#This Row],[Kwota VAT]]+Tabela1[[#This Row],[Netto (kol.3xkol.4)]]","v":0}]
[56,"Przyklejenie płyt styropianowych - montaż profili okiennych",20.399999999999999,null,{"$f":"Tabela1[[#This Row],[Cena jedn. netto]]*Tabela1[[#This Row],[Ilość ]]","v":0},{"$f":"Tabela1[[#This Row],[Netto (kol.3xkol.4)]]*Tabela1[[#This Row],[% VAT]]","v":0},{"$f":"Tabela1[[#This Row],[Kwota VAT]]+Tabela1[[#This Row],[Netto (kol.3xkol.4)]]","v":0}]
[57,"Przyklejenie płyt styropianowych - montaż narożnika ochronnego",10.199999999999999,null,{"$f":"Tabela1[[#This Row],[Cena jedn. netto]]*Tabela1[[#This Row],[Ilość ]]","v":0},{"$f":"Tabela1[[#This Row],[Netto (kol.3xkol.4)]]*Tabela1[[#This Row],[% VAT]]","v":0},{"$f":"Tabela1[[#This Row],[Kwota VAT]]+Tabela1[[#This Row],[Netto (kol.3xkol.4)]]","v":0}]
[58,"Wykonanie warstwy zbrojonej z jednej warstwy siatki na płytach styropianowych na ścianach",8.1180000000000003,null,{"$f":"Tabela1[[#This Row],[Cena jedn. netto]]*Tabela1[[#This Row],[Ilość ]]","v":0},{"$f":"Tabela1[[#This Row],[Netto (kol.3xkol.4)]]*Tabela1[[#This Row],[% VAT]]","v":0},{"$f":"Tabela1[[#This Row],[Kwota VAT]]+Tabela1[[#This Row],[Netto (kol.3xkol.4)]]","v":0}]
[59,"Wykonanie warstwy zbrojonej z jednej warstwy siatki na płytach styropianowych na ościeżach o szerokości do 30 cm",5.0999999999999996,null,{"$f":"Tabela1[[#This Row],[Cena jedn. netto]]*Tabela1[[#This Row],[Ilość ]]","v":0},{"$f":"Tabela1[[#This Row],[Netto (kol.3xkol.4)]]*Tabela1[[#This Row],[% VAT]]","v":0},{"$f":"Tabela1[[#This Row],[Kwota VAT]]+Tabela1[[#This Row],[Netto (kol.3xkol.4)]]","v":0}]
[60,"Wykonanie warstwy zbrojonej z jednej warstwy siatki na płytach styropianowych na ościeżach o szerokości do 15 cm",1.9379999999999999,null,{"$f":"Tabela1[[#This Row],[Cena jedn. netto]]*Tabela1[[#This Row],[Ilość ]]","v":0},{"$f":"Tabela1[[#This Row],[Netto (kol.3xkol.4)]]*Tabela1[[#This Row],[% VAT]]","v":0},{"$f":"Tabela1[[#This Row],[Kwota VAT]]+Tabela1[[#This Row],[Netto (kol.3xkol.4)]]","v":0}]
[61,"Wykonanie warstwy zbrojonej z jednej warstwy siatki na płytach styropianowych na powierzchniach sufitowych",7.056,null,{"$f":"Tabela1[[#This Row],[Cena jedn. netto]]*Tabela1[[#This Row],[Ilość ]]","v":0},{"$f":"Tabela1[[#This Row],[Netto (kol.3xkol.4)]]*Tabela1[[#This Row],[% VAT]]","v":0},{"$f":"Tabela1[[#This Row],[Kwota VAT]]+Tabela1[[#This Row],[Netto (kol.3xkol.4)]]","v":0}]
[62,"Wykonanie warstwy zbrojonej na płytach styropianowych - dodatkowa warstwa siatki",8.1180000000000003,null,{"$f":"Tabela1[[#This Row],[Cena jedn. netto]]*Tabela1[[#This Row],[Ilość ]]","v":0},{"$f":"Tabela1[[#This Row],[Netto (kol.3xkol.4)]]*Tabela1[[#This Row],[% VAT]]","v":0},{"$f":"Tabela1[[#This Row],[Kwota VAT]]+Tabela1[[#This Row],[Netto (kol.3xkol.4)]]","v":0}]
[63,"Okładziny z płytek klinkierowych na ścianach",8.1180000000000003,null,{"$f":"Tabela1[[#This Row],[Cena jedn. netto]]*Tabela1[[#This Row],[Ilość ]]","v":0},{"$f":"Tabela1[[#This Row],[Netto (kol.3xkol.4)]]*Tabela1[[#This Row],[% VAT]]","v":0},{"$f":"Tabela1[[#This Row],[Kwota VAT]]+Tabela1[[#This Row],[Netto (kol.3xkol.4)]]","v":0}]
[64,"Dodatek za fugowanie wąską kielnią",8.1180000000000003,null,{"$f":"Tabela1[[#This Row],[Cena jedn. netto]]*Tabela1[[#This Row],[Ilość ]]","v":0},{"$f":"Tabela1[[#This Row],[Netto (kol.3xkol.4)]]*Tabela1[[#This Row],[% VAT]]","v":0},{"$f":"Tabela1[[#This Row],[Kwota VAT]]+Tabela1[[#This Row],[Netto (kol.3xkol.4)]]","v":0}]
[65,"Gruntowanie podłoża pod tynki elewacyjne mineralne\n- pierwsza warstwa",14.093999999999999,null,{"$f":"Tabela1[[#This Row],[Cena jedn. netto]]*Tabela1[[#This Row],[Ilość ]]","v":0},{"$f":"Tabela1[[#This Row],[Netto (kol.3xkol.4)]]*Tabela1[[#This Row],[% VAT]]","v":0},{"$f":"Tabela1[[#This Row],[Kwota VAT]]+Tabela1[[#This Row],[Netto (kol.3xkol.4)]]","v":0}]
[66,"Wykonywanie ręczne tynków cienkowarstwowych mineralnych na gotowym podłożu. Tynk mineralny\ngładki; słupy prostokątne",7.0380000000000003,null,{"$f":"Tabela1[[#This Row],[Cena jedn. netto]]*Tabela1[[#This Row],[Ilość ]]","v":0},{"$f":"Tabela1[[#This Row],[Netto (kol.3xkol.4)]]*Tabela1[[#This Row],[% VAT]]","v":0},{"$f":"Tabela1[[#This Row],[Kwota VAT]]+Tabela1[[#This Row],[Netto (kol.3xkol.4)]]","v":0}]
[67,"Wykonywanie ręczne tynków cienkowarstwowych mineralnych na gotowym podłożu. Tynk mineralny\ngładki; powierzchnie poziome",7.056,null,{"$f":"Tabela1[[#This Row],[Cena jedn. netto]]*Tabela1[[#This Row],[Ilość ]]","v":0},{"$f":"Tabela1[[#This Row],[Netto (kol.3xkol.4)]]*Tabela1[[#This Row],[% VAT]]","v":0},{"$f":"Tabela1[[#This Row],[Kwota VAT]]+Tabela1[[#This Row],[Netto (kol.3xkol.4)]]","v":0}]
[68,"Przyklejenie płyt styropianowych - Gzyms ozdobny zewnętrzny GZ-1",24,null,{"$f":"Tabela1[[#This Row],[Cena jedn. netto]]*Tabela1[[#This Row],[Ilość ]]","v":0},{"$f":"Tabela1[[#This Row],[Netto (kol.3xkol.4)]]*Tabela1[[#This Row],[% VAT]]","v":0},{"$f":"Tabela1[[#This Row],[Kwota VAT]]+Tabela1[[#This Row],[Netto (kol.3xkol.4)]]","v":0}]
[69,"Przyklejenie płyt styropianowych - Gzyms ozdobny zewnętrzny GZ-2",2,null,{"$f":"Tabela1[[#This Row],[Cena jedn. netto]]*Tabela1[[#This Row],[Ilość ]]","v":0},{"$f":"Tabela1[[#This Row],[Netto (kol.3xkol.4)]]*Tabela1[[#This Row],[% VAT]]","v":0},{"$f":"Tabela1[[#This Row],[Kwota VAT]]+Tabela1[[#This Row],[Netto (kol.3xkol.4)]]","v":0}]
[70,"Przyklejenie płyt styropianowych - Gzyms ozdobny zewnętrzny GZ-3",36,null,{"$f":"Tabela1[[#This Row],[Cena jedn. netto]]*Tabela1[[#This Row],[Ilość ]]","v":0},{"$f":"Tabela1[[#This Row],[Netto (kol.3xkol.4)]]*Tabela1[[#This Row],[% VAT]]","v":0},{"$f":"Tabela1[[#This Row],[Kwota VAT]]+Tabela1[[#This Row],[Netto (kol.3xkol.4)]]","v":0}]
[71,"Malowanie elewacji farbą silikonową dwukrotnie; tynk\ngładki",14.093999999999999,null,{"$f":"Tabela1[[#This Row],[Cena jedn. netto]]*Tabela1[[#This Row],[Ilość ]]","v":0},{"$f":"Tabela1[[#This Row],[Netto (kol.3xkol.4)]]*Tabela1[[#This Row],[% VAT]]","v":0},{"$f":"Tabela1[[#This Row],[Kwota VAT]]+Tabela1[[#This Row],[Netto (kol.3xkol.4)]]","v":0}]
["VIII. 2","Obróbki blacharskie",null,null,{"$f":"Tabela1[[#This Row],[Cena jedn. netto]]*Tabela1[[#This Row],[Ilość ]]","v":0},{"$f":"Tabela1[[#This Row],[Netto (kol.3xkol.4)]]*Tabela1[[#This Row],[% VAT]]","v":0},{"$f":"Tabela1[[#This Row],[Kwota VAT]]+Tabela1[[#This Row],[Netto (kol.3xkol.4)]]","v":0}]
[{"$f":"ROW()-28","v":72},"Izolacje cieplne z płyt XPS 300 gr.6-10cm - poziome",24,null,{"$f":"Tabela1[[#This Row],[Cena jedn. netto]]*Tabela1[[#This Row],[Ilość ]]","v":0},{"$f":"Tabela1[[#This Row],[Netto (kol.3xkol.4)]]*Tabela1[[#This Row],[% VAT]]","v":0},{"$f":"Tabela1[[#This Row],[Kwota VAT]]+Tabela1[[#This Row],[Netto (kol.3xkol.4)]]","v":0}]
[{"$f":"ROW()-28","v":73},"Podkonstrukcja ze sklejki wodoodpornej gr. 25mm",17.04,null,{"$f":"Tabela1[[#This Row],[Cena jedn. netto]]*Tabela1[[#This Row],[Ilość ]]","v":0},{"$f":"Tabela1[[#This Row],[Netto (kol.3xkol.4)]]*Tabela1[[#This Row],[% VAT]]","v":0},{"$f":"Tabela1[[#This Row],[Kwota VAT]]+Tabela1[[#This Row],[Netto (kol.3xkol.4)]]","v":0}]
[74,"Wykonanie hydroizolacji z membrany EPDM - montaż membrany do podłoża",17.04,null,{"$f":"Tabela1[[#This Row],[Cena jedn. netto]]*Tabela1[[#This Row],[Ilość ]]","v":0},{"$f":"Tabela1[[#This Row],[Netto (kol.3xkol.4)]]*Tabela1[[#This Row],[% VAT]]","v":0},{"$f":"Tabela1[[#This Row],[Kwota VAT]]+Tabela1[[#This Row],[Netto (kol.3xkol.4)]]","v":0}]
[75,"Montaż maty strukturalnej pod obróbkę blacharską na podkonstrukcji ze sklejki",17.04,null,{"$f":"Tabela1[[#This Row],[Cena jedn. netto]]*Tabela1[[#This Row],[Ilość ]]","v":0},{"$f":"Tabela1[[#This Row],[Netto (kol.3xkol.4)]]*Tabela1[[#This Row],[% VAT]]","v":0},{"$f":"Tabela1[[#This Row],[Kwota VAT]]+Tabela1[[#This Row],[Netto (kol.3xkol.4)]]","v":0}]
[76,"Obróbki blacharskie z blachy powlekanej o szer.w rozwinięciu ponad 25 cm",17.04,null,{"$f":"Tabela1[[#This Row],[Cena jedn. netto]]*Tabela1[[#This Row],[Ilość ]]","v":0},{"$f":"Tabela1[[#This Row],[Netto (kol.3xkol.4)]]*Tabela1[[#This Row],[% VAT]]","v":0},{"$f":"Tabela1[[#This Row],[Kwota VAT]]+Tabela1[[#This Row],[Netto (kol.3xkol.4)]]","v":0}]
["VIII. 3","Orynnowanie",null,null,{"$f":"Tabela1[[#This Row],[Cena jedn. netto]]*Tabela1[[#This Row],[Ilość ]]","v":0},{"$f":"Tabela1[[#This Row],[Netto (kol.3xkol.4)]]*Tabela1[[#This Row],[% VAT]]","v":0},{"$f":"Tabela1[[#This Row],[Kwota VAT]]+Tabela1[[#This Row],[Netto (kol.3xkol.4)]]","v":0}]
[{"$f":"ROW()-29","v":77},"Montaż rynien dachowych o śr. 100 mm",23.04,null,{"$f":"Tabela1[[#This Row],[Cena jedn. netto]]*Tabela1[[#This Row],[Ilość ]]","v":0},{"$f":"Tabela1[[#This Row],[Netto (kol.3xkol.4)]]*Tabela1[[#This Row],[% VAT]]","v":0},{"$f":"Tabela1[[#This Row],[Kwota VAT]]+Tabela1[[#This Row],[Netto (kol.3xkol.4)]]","v":0}]
[{"$f":"ROW()-29","v":78},"Montaż rur spustowych o śr. 80 mm",3.32,null,{"$f":"Tabela1[[#This Row],[Cena jedn. netto]]*Tabela1[[#This Row],[Ilość ]]","v":0},{"$f":"Tabela1[[#This Row],[Netto (kol.3xkol.4)]]*Tabela1[[#This Row],[% VAT]]","v":0},{"$f":"Tabela1[[#This Row],[Kwota VAT]]+Tabela1[[#This Row],[Netto (kol.3xkol.4)]]","v":0}]
["IX","Roboty wewnętrzne",null,null,{"$f":"Tabela1[[#This Row],[Cena jedn. netto]]*Tabela1[[#This Row],[Ilość ]]","v":0},{"$f":"Tabela1[[#This Row],[Netto (kol.3xkol.4)]]*Tabela1[[#This Row],[% VAT]]","v":0},{"$f":"Tabela1[[#This Row],[Kwota VAT]]+Tabela1[[#This Row],[Netto (kol.3xkol.4)]]","v":0}]
["IX. 1","Prace przygotowawcze",null,null,{"$f":"Tabela1[[#This Row],[Cena jedn. netto]]*Tabela1[[#This Row],[Ilość ]]","v":0},{"$f":"Tabela1[[#This Row],[Netto (kol.3xkol.4)]]*Tabela1[[#This Row],[% VAT]]","v":0},{"$f":"Tabela1[[#This Row],[Kwota VAT]]+Tabela1[[#This Row],[Netto (kol.3xkol.4)]]","v":0}]
[{"$f":"ROW()-31","v":79},"Zabezpieczenie okien i drzwi folią/taśmą",52.860999999999997,null,{"$f":"Tabela1[[#This Row],[Cena jedn. netto]]*Tabela1[[#This Row],[Ilość ]]","v":0},{"$f":"Tabela1[[#This Row],[Netto (kol.3xkol.4)]]*Tabela1[[#This Row],[% VAT]]","v":0},{"$f":"Tabela1[[#This Row],[Kwota VAT]]+Tabela1[[#This Row],[Netto (kol.3xkol.4)]]","v":0}]
["IX 2","Tynki",null,null,{"$f":"Tabela1[[#This Row],[Cena jedn. netto]]*Tabela1[[#This Row],[Ilość ]]","v":0},{"$f":"Tabela1[[#This Row],[Netto (kol.3xkol.4)]]*Tabela1[[#This Row],[% VAT]]","v":0},{"$f":"Tabela1[[#This Row],[Kwota VAT]]+Tabela1[[#This Row],[Netto (kol.3xkol.4)]]","v":0}]
[{"$f":"ROW()-32","v":80},"Tynk odporny na wilgoć o grubości 2 cm nakładany ręcznie na ścianach",10.77,null,{"$f":"Tabela1[[#This Row],[Cena jedn. netto]]*Tabela1[[#This Row],[Ilość ]]","v":0},{"$f":"Tabela1[[#This Row],[Netto (kol.3xkol.4)]]*Tabela1[[#This Row],[% VAT]]","v":0},{"$f":"Tabela1[[#This Row],[Kwota VAT]]+Tabela1[[#This Row],[Netto (kol.3xkol.4)]]","v":0}]
[{"$f":"ROW()-32","v":81},"Tynk odporny na wilgoć o grubości 2 cm nakładany\nręcznie na sklepieniach",6.6,null,{"$f":"Tabela1[[#This Row],[Cena jedn. netto]]*Tabela1[[#This Row],[Ilość ]]","v":0},{"$f":"Tabela1[[#This Row],[Netto (kol.3xkol.4)]]*Tabela1[[#This Row],[% VAT]]","v":0},{"$f":"Tabela1[[#This Row],[Kwota VAT]]+Tabela1[[#This Row],[Netto (kol.3xkol.4)]]","v":0}]
["IX. 3","Nawierzvhnia",null,null,{"$f":"Tabela1[[#This Row],[Cena jedn. netto]]*Tabela1[[#This Row],[Ilość ]]","v":0},{"$f":"Tabela1[[#This Row],[Netto (kol.3xkol.4)]]*Tabela1[[#This Row],[% VAT]]","v":0},{"$f":"Tabela1[[#This Row],[Kwota VAT]]+Tabela1[[#This Row],[Netto (kol.3xkol.4)]]","v":0}]
[{"$f":"ROW()-33","v":82},"Podbudowy z gruntu stabilizowanego cementem, warstwa o grubości po zagęszczeniu 5 cm",25,null,{"$f":"Tabela1[[#This Row],[Cena jedn. netto]]*Tabela1[[#This Row],[Ilość ]]","v":0},{"$f":"Tabela1[[#This Row],[Netto (kol.3xkol.4)]]*Tabela1[[#This Row],[% VAT]]","v":0},{"$f":"Tabela1[[#This Row],[Kwota VAT]]+Tabela1[[#This Row],[Netto (kol.3xkol.4)]]","v":0}]
[{"$f":"ROW()-33","v":83},"Nawierzchnia z płyt brukowych imitujących piaskowiec/trawertyn o grubości 6 cm na podsypce piaskowej z wypełnieniem spoin piaskiem kwarcowym",25,null,{"$f":"Tabela1[[#This Row],[Cena jedn. netto]]*Tabela1[[#This Row],[Ilość ]]","v":0},{"$f":"Tabela1[[#This Row],[Netto (kol.3xkol.4)]]*Tabela1[[#This Row],[% VAT]]","v":0},{"$f":"Tabela1[[#This Row],[Kwota VAT]]+Tabela1[[#This Row],[Netto (kol.3xkol.4)]]","v":0}]
["IX. 4","Szpachlowanie-malowanie",null,null,{"$f":"Tabela1[[#This Row],[Cena jedn. netto]]*Tabela1[[#This Row],[Ilość ]]","v":0},{"$f":"Tabela1[[#This Row],[Netto (kol.3xkol.4)]]*Tabela1[[#This Row],[% VAT]]","v":0},{"$f":"Tabela1[[#This Row],[Kwota VAT]]+Tabela1[[#This Row],[Netto (kol.3xkol.4)]]","v":0}]
[{"$f":"ROW()-34","v":84},"Gruntowanie podłoży preparatami - powierzchnie pionowe",10.77,null,{"$f":"Tabela1[[#This Row],[Cena jedn. netto]]*Tabela1[[#This Row],[Ilość ]]","v":0},{"$f":"Tabela1[[#This Row],[Netto (kol.3xkol.4)]]*Tabela1[[#This Row],[% VAT]]","v":0},{"$f":"Tabela1[[#This Row],[Kwota VAT]]+Tabela1[[#This Row],[Netto (kol.3xkol.4)]]","v":0}]
[{"$f":"ROW()-34","v":85},"Wewnętrzne gładzie cementowe dwuwarstwowe na ścianach",10.77,null,{"$f":"Tabela1[[#This Row],[Cena jedn. netto]]*Tabela1[[#This Row],[Ilość ]]","v":0},{"$f":"Tabela1[[#This Row],[Netto (kol.3xkol.4)]]*Tabela1[[#This Row],[% VAT]]","v":0},{"$f":"Tabela1[[#This Row],[Kwota VAT]]+Tabela1[[#This Row],[Netto (kol.3xkol.4)]]","v":0}]
[86,"Przecieranie istniejących tynków wewnętrznych - PRZECIERANIE GŁADZI",10.77,null,{"$f":"Tabela1[[#This Row],[Cena jedn. netto]]*Tabela1[[#This Row],[Ilość ]]","v":0},{"$f":"Tabela1[[#This Row],[Netto (kol.3xkol.4)]]*Tabela1[[#This Row],[% VAT]]","v":0},{"$f":"Tabela1[[#This Row],[Kwota VAT]]+Tabela1[[#This Row],[Netto (kol.3xkol.4)]]","v":0}]
[87,"Gruntowanie podłoży preparatami - powierzchnie poziome",6.6,null,{"$f":"Tabela1[[#This Row],[Cena jedn. netto]]*Tabela1[[#This Row],[Ilość ]]","v":0},{"$f":"Tabela1[[#This Row],[Netto (kol.3xkol.4)]]*Tabela1[[#This Row],[% VAT]]","v":0},{"$f":"Tabela1[[#This Row],[Kwota VAT]]+Tabela1[[#This Row],[Netto (kol.3xkol.4)]]","v":0}]
[88,"Wewnętrzne gładzie gipsowe dwuwarstwowe na sufitach",6.6,null,{"$f":"Tabela1[[#This Row],[Cena jedn. netto]]*Tabela1[[#This Row],[Ilość ]]","v":0},{"$f":"Tabela1[[#This Row],[Netto (kol.3xkol.4)]]*Tabela1[[#This Row],[% VAT]]","v":0},{"$f":"Tabela1[[#This Row],[Kwota VAT]]+Tabela1[[#This Row],[Netto (kol.3xkol.4)]]","v":0}]
[89,"Przecieranie istniejących tynków wewnętrznych na stropach - PRZECIERANIE GŁADZI",6.6,null,{"$f":"Tabela1[[#This Row],[Cena jedn. netto]]*Tabela1[[#This Row],[Ilość ]]","v":0},{"$f":"Tabela1[[#This Row],[Netto (kol.3xkol.4)]]*Tabela1[[#This Row],[% VAT]]","v":0},{"$f":"Tabela1[[#This Row],[Kwota VAT]]+Tabela1[[#This Row],[Netto (kol.3xkol.4)]]","v":0}]
[90,"Gruntowanie podłoży preparatami przed\nmalowaniem - powierzchnie pionowe",10.77,null,{"$f":"Tabela1[[#This Row],[Cena jedn. netto]]*Tabela1[[#This Row],[Ilość ]]","v":0},{"$f":"Tabela1[[#This Row],[Netto (kol.3xkol.4)]]*Tabela1[[#This Row],[% VAT]]","v":0},{"$f":"Tabela1[[#This Row],[Kwota VAT]]+Tabela1[[#This Row],[Netto (kol.3xkol.4)]]","v":0}]
[91,"Gruntowanie podłoży preparatami przed malowaniem - powierzchnie poziome",6.6,null,{"$f":"Tabela1[[#This Row],[Cena jedn. netto]]*Tabela1[[#This Row],[Ilość ]]","v":0},{"$f":"Tabela1[[#This Row],[Netto (kol.3xkol.4)]]*Tabela1[[#This Row],[% VAT]]","v":0},{"$f":"Tabela1[[#This Row],[Kwota VAT]]+Tabela1[[#This Row],[Netto (kol.3xkol.4)]]","v":0}]
[92,"Malowanie farbą silikonową dwukrotnie",17.37,null,{"$f":"Tabela1[[#This Row],[Cena jedn. netto]]*Tabela1[[#This Row],[Ilość ]]","v":0},{"$f":"Tabela1[[#This Row],[Netto (kol.3xkol.4)]]*Tabela1[[#This Row],[% VAT]]","v":0},{"$f":"Tabela1[[#This Row],[Kwota VAT]]+Tabela1[[#This Row],[Netto (kol.3xkol.4)]]","v":0}]
["X.","Zagospodarowanie terenu",null,null,{"$f":"Tabela1[[#This Row],[Cena jedn. netto]]*Tabela1[[#This Row],[Ilość ]]","v":0},{"$f":"Tabela1[[#This Row],[Netto (kol.3xkol.4)]]*Tabela1[[#This Row],[% VAT]]","v":0},{"$f":"Tabela1[[#This Row],[Kwota VAT]]+Tabela1[[#This Row],[Netto (kol.3xkol.4)]]","v":0}]
[{"$f":"ROW()-35","v":93},"Wykonanie koryta w gruncie - 10 cm głębokości koryta",182.33,null,{"$f":"Tabela1[[#This Row],[Cena jedn. netto]]*Tabela1[[#This Row],[Ilość ]]","v":0},{"$f":"Tabela1[[#This Row],[Netto (kol.3xkol.4)]]*Tabela1[[#This Row],[% VAT]]","v":0},{"$f":"Tabela1[[#This Row],[Kwota VAT]]+Tabela1[[#This Row],[Netto (kol.3xkol.4)]]","v":0}]
[{"$f":"ROW()-35","v":94},"Rowki pod obrzeża",281,null,{"$f":"Tabela1[[#This Row],[Cena jedn. netto]]*Tabela1[[#This Row],[Ilość ]]","v":0},{"$f":"Tabela1[[#This Row],[Netto (kol.3xkol.4)]]*Tabela1[[#This Row],[% VAT]]","v":0},{"$f":"Tabela1[[#This Row],[Kwota VAT]]+Tabela1[[#This Row],[Netto (kol.3xkol.4)]]","v":0}]
[95,"Obrzeża betonowe o wymiarach 20x6 cm na podsypce piaskowej z wypełnieniem spoin piaskiem",281,null,{"$f":"Tabela1[[#This Row],[Cena jedn. netto]]*Tabela1[[#This Row],[Ilość ]]","v":0},{"$f":"Tabela1[[#This Row],[Netto (kol.3xkol.4)]]*Tabela1[[#This Row],[% VAT]]","v":0},{"$f":"Tabela1[[#This Row],[Kwota VAT]]+Tabela1[[#This Row],[Netto (kol.3xkol.4)]]","v":0}]
[96,"Warstwa wzmacniająca grunt pod warstwy technologiczne z geowłókniny PP 150-200 g/m2",182.33,null,{"$f":"Tabela1[[#This Row],[Cena jedn. netto]]*Tabela1[[#This Row],[Ilość ]]","v":0},{"$f":"Tabela1[[#This Row],[Netto (kol.3xkol.4)]]*Tabela1[[#This Row],[% VAT]]","v":0},{"$f":"Tabela1[[#This Row],[Kwota VAT]]+Tabela1[[#This Row],[Netto (kol.3xkol.4)]]","v":0}]
[97,"Podkłady z ubitych materiałów sypkich na podłożu gruntowym - piasek średni zagęszczony ID = 0,95\n- Grubość warstwy 10cm",18.233000000000001,null,{"$f":"Tabela1[[#This Row],[Cena jedn. netto]]*Tabela1[[#This Row],[Ilość ]]","v":0},{"$f":"Tabela1[[#This Row],[Netto (kol.3xkol.4)]]*Tabela1[[#This Row],[% VAT]]","v":0},{"$f":"Tabela1[[#This Row],[Kwota VAT]]+Tabela1[[#This Row],[Netto (kol.3xkol.4)]]","v":0}]
[98,"Podbudowy z gruntu stabilizowanego cementem, warstwa o grubości po zagęszczeniu 5 cm",182.33,null,{"$f":"Tabela1[[#This Row],[Cena jedn. netto]]*Tabela1[[#This Row],[Ilość ]]","v":0},{"$f":"Tabela1[[#This Row],[Netto (kol.3xkol.4)]]*Tabela1[[#This Row],[% VAT]]","v":0},{"$f":"Tabela1[[#This Row],[Kwota VAT]]+Tabela1[[#This Row],[Netto (kol.3xkol.4)]]","v":0}]
[99,"Nawierzchnia z płyt brukowych imitujących piaskowiec/trawertyn o grubości 6 cm na podsypce piaskowej z wypełnieniem spoin piaskiem kwarcowym",182.33,null,{"$f":"Tabela1[[#This Row],[Cena jedn. netto]]*Tabela1[[#This Row],[Ilość ]]","v":0},{"$f":"Tabela1[[#This Row],[Netto (kol.3xkol.4)]]*Tabela1[[#This Row],[% VAT]]","v":0},{"$f":"Tabela1[[#This Row],[Kwota VAT]]+Tabela1[[#This Row],[Netto (kol.3xkol.4)]]","v":0}]
[100,"Ręczne wykonanie trawników siewem w terenie płaskim w gruncie kat. III\n- Odtworzenie trawnika",288.86,null,{"$f":"Tabela1[[#This Row],[Cena jedn. netto]]*Tabela1[[#This Row],[Ilość ]]","v":0},{"$f":"Tabela1[[#This Row],[Netto (kol.3xkol.4)]]*Tabela1[[#This Row],[% VAT]]","v":0},{"$f":"Tabela1[[#This Row],[Kwota VAT]]+Tabela1[[#This Row],[Netto (kol.3xkol.4)]]","v":0}]
["XI.","Wyposażenie",null,null,{"$f":"Tabela1[[#This Row],[Cena jedn. netto]]*Tabela1[[#This Row],[Ilość ]]","v":0},{"$f":"Tabela1[[#This Row],[Netto (kol.3xkol.4)]]*Tabela1[[#This Row],[% VAT]]","v":0},{"$f":"Tabela1[[#This Row],[Kwota VAT]]+Tabela1[[#This Row],[Netto (kol.3xkol.4)]]","v":0}]
[{"$f":"ROW()-36","v":101},"Sofy z oparciem (aluminiowe z poszyciem tekstylnym)",4,null,{"$f":"Tabela1[[#This Row],[Cena jedn. netto]]*Tabela1[[#This Row],[Ilość ]]","v":0},{"$f":"Tabela1[[#This Row],[Netto (kol.3xkol.4)]]*Tabela1[[#This Row],[% VAT]]","v":0},{"$f":"Tabela1[[#This Row],[Kwota VAT]]+Tabela1[[#This Row],[Netto (kol.3xkol.4)]]","v":0}]
[{"$f":"ROW()-36","v":102},"Fontanna (rzeźba) z zamkniętym obiegiem wody",1,null,{"$f":"Tabela1[[#This Row],[Cena jedn. netto]]*Tabela1[[#This Row],[Ilość ]]","v":0},{"$f":"Tabela1[[#This Row],[Netto (kol.3xkol.4)]]*Tabela1[[#This Row],[% VAT]]","v":0},{"$f":"Tabela1[[#This Row],[Kwota VAT]]+Tabela1[[#This Row],[Netto (kol.3xkol.4)]]","v":0}]
[103,"Ławki z oparciem (stalowe z poszyciem drewnianym)",8,null,{"$f":"Tabela1[[#This Row],[Cena jedn. netto]]*Tabela1[[#This Row],[Ilość ]]","v":0},{"$f":"Tabela1[[#This Row],[Netto (kol.3xkol.4)]]*Tabela1[[#This Row],[% VAT]]","v":0},{"$f":"Tabela1[[#This Row],[Kwota VAT]]+Tabela1[[#This Row],[Netto (kol.3xkol.4)]]","v":0}]
[104,"Donica ceramiczne stylizowana, mrozoodporna, z wewnętrznym pojemnikiem drenującym z PCV, do nasadzeń sezonowych\nDonica duża w kształcie kielicha (waza klasyczna), kolor piaskowy, materiał: rekonstruowany piaskowiec.\nWaga: 56.0 kg. Wymiary: śr.: 54cm, wys.: 69cm",12,null,{"$f":"Tabela1[[#This Row],[Cena jedn. netto]]*Tabela1[[#This Row],[Ilość ]]","v":0},{"$f":"Tabela1[[#This Row],[Netto (kol.3xkol.4)]]*Tabela1[[#This Row],[% VAT]]","v":0},{"$f":"Tabela1[[#This Row],[Kwota VAT]]+Tabela1[[#This Row],[Netto (kol.3xkol.4)]]","v":0}]
[105,"Donica ceramiczne stylizowana, mrozoodporna, z wewnętrznym pojemnikiem drenującym z PCV, do nasadzeń sezonowych\nDonica średnia w kształcie kielicha (waza klasyczna), kolor piaskowy, materiał: rekonstruowany piaskowiec.\nWaga: 37.0 kg. Wymiary: śr.: 38cm, wys.: 54cm",10,null,{"$f":"Tabela1[[#This Row],[Cena jedn. netto]]*Tabela1[[#This Row],[Ilość ]]","v":0},{"$f":"Tabela1[[#This Row],[Netto (kol.3xkol.4)]]*Tabela1[[#This Row],[% VAT]]","v":0},{"$f":"Tabela1[[#This Row],[Kwota VAT]]+Tabela1[[#This Row],[Netto (kol.3xkol.4)]]","v":0}]
[106,"Donica ceramiczne stylizowana, mrozoodporna, z wewnętrznym pojemnikiem drenującym z PCV, do nasadzeń sezonowych\nDonica duża w kształcie stożka (toczony gruby rant zwężający się korpus, bez ornamentu), kolor piaskowy, materiał: rekonstruowany piaskowiec.\nWaga: 38.0 kg. Wymiary: śr.: 39cm, wys.:37",4,null,{"$f":"Tabela1[[#This Row],[Cena jedn. netto]]*Tabela1[[#This Row],[Ilość ]]","v":0},{"$f":"Tabela1[[#This Row],[Netto (kol.3xkol.4)]]*Tabela1[[#This Row],[% VAT]]","v":0},{"$f":"Tabela1[[#This Row],[Kwota VAT]]+Tabela1[[#This Row],[Netto (kol.3xkol.4)]]","v":0}]
["XII.","Instalacje elektryczne",null,null,{"$f":"Tabela1[[#This Row],[Cena jedn. netto]]*Tabela1[[#This Row],[Ilość ]]","v":0},{"$f":"Tabela1[[#This Row],[Netto (kol.3xkol.4)]]*Tabela1[[#This Row],[% VAT]]","v":0},{"$f":"Tabela1[[#This Row],[Kwota VAT]]+Tabela1[[#This Row],[Netto (kol.3xkol.4)]]","v":0}]
[{"$f":"ROW()-37","v":107},"Oprawy oświetleniowe zawieszane (zwykłe)",1,null,{"$f":"Tabela1[[#This Row],[Cena jedn. netto]]*Tabela1[[#This Row],[Ilość ]]","v":0},{"$f":"Tabela1[[#This Row],[Netto (kol.3xkol.4)]]*Tabela1[[#This Row],[% VAT]]","v":0},{"$f":"Tabela1[[#This Row],[Kwota VAT]]+Tabela1[[#This Row],[Netto (kol.3xkol.4)]]","v":0}]
[{"$f":"ROW()-37","v":108},"Łączniki świecznikowe",1,null,{"$f":"Tabela1[[#This Row],[Cena jedn. netto]]*Tabela1[[#This Row],[Ilość ]]","v":0},{"$f":"Tabela1[[#This Row],[Netto (kol.3xkol.4)]]*Tabela1[[#This Row],[% VAT]]","v":0},{"$f":"Tabela1[[#This Row],[Kwota VAT]]+Tabela1[[#This Row],[Netto (kol.3xkol.4)]]","v":0}]
[109,"Gniazda instalacyjne wtyczkowe ze stykiem ochronnym bryzgoszczelne 2-biegunowe przykręcane o obciążalności do 16 A i przekroju przewodów do 2.5 mm2",1,null,{"$f":"Tabela1[[#This Row],[Cena jedn. netto]]*Tabela1[[#This Row],[Ilość ]]","v":0},{"$f":"Tabela1[[#This Row],[Netto (kol.3xkol.4)]]*Tabela1[[#This Row],[% VAT]]","v":0},{"$f":"Tabela1[[#This Row],[Kwota VAT]]+Tabela1[[#This Row],[Netto (kol.3xkol.4)]]","v":0}]
[110,"Listwy elektroinstalacyjne z PCW (naścienne, przypodłogowe i ścienne)",16,null,{"$f":"Tabela1[[#This Row],[Cena jedn. netto]]*Tabela1[[#This Row],[Ilość ]]","v":0},{"$f":"Tabela1[[#This Row],[Netto (kol.3xkol.4)]]*Tabela1[[#This Row],[% VAT]]","v":0},{"$f":"Tabela1[[#This Row],[Kwota VAT]]+Tabela1[[#This Row],[Netto (kol.3xkol.4)]]","v":0}]
[111,"Przewody kabelkowe o łącznym przekroju żył do 7.5 mm2\nukładane w listwach i kanałach elektroinstalacyjnych",20,null,{"$f":"Tabela1[[#This Row],[Cena jedn. netto]]*Tabela1[[#This Row],[Ilość ]]","v":0},{"$f":"Tabela1[[#This Row],[Netto (kol.3xkol.4)]]*Tabela1[[#This Row],[% VAT]]","v":0},{"$f":"Tabela1[[#This Row],[Kwota VAT]]+Tabela1[[#This Row],[Netto (kol.3xkol.4)]]","v":0}]
[112,"Montaż latarń oświetleniowych parkowych (ogrodowych) na gotowym podłożu",8,null,{"$f":"Tabela1[[#This Row],[Cena jedn. netto]]*Tabela1[[#This Row],[Ilość ]]","v":0},{"$f":"Tabela1[[#This Row],[Netto (kol.3xkol.4)]]*Tabela1[[#This Row],[% VAT]]","v":0},{"$f":"Tabela1[[#This Row],[Kwota VAT]]+Tabela1[[#This Row],[Netto (kol.3xkol.4)]]","v":0}]
[113,"Złącza kablowo sterownicze",1,null,{"$f":"Tabela1[[#This Row],[Cena jedn. netto]]*Tabela1[[#This Row],[Ilość ]]","v":0},{"$f":"Tabela1[[#This Row],[Netto (kol.3xkol.4)]]*Tabela1[[#This Row],[% VAT]]","v":0},{"$f":"Tabela1[[#This Row],[Kwota VAT]]+Tabela1[[#This Row],[Netto (kol.3xkol.4)]]","v":0}]
[114,"Montaż uziomów lub przewodów uziemiających w gruncie\nkat.III",10,null,{"$f":"Tabela1[[#This Row],[Cena jedn. netto]]*Tabela1[[#This Row],[Ilość ]]","v":0},{"$f":"Tabela1[[#This Row],[Netto (kol.3xkol.4)]]*Tabela1[[#This Row],[% VAT]]","v":0},{"$f":"Tabela1[[#This Row],[Kwota VAT]]+Tabela1[[#This Row],[Netto (kol.3xkol.4)]]","v":0}]
[115,"Mechaniczne pogrąźanie uziomów pionowych prętowych w gruncie kat III",18,null,{"$f":"Tabela1[[#This Row],[Cena jedn. netto]]*Tabela1[[#This Row],[Ilość ]]","v":0},{"$f":"Tabela1[[#This Row],[Netto (kol.3xkol.4)]]*Tabela1[[#This Row],[% VAT]]","v":0},{"$f":"Tabela1[[#This Row],[Kwota VAT]]+Tabela1[[#This Row],[Netto (kol.3xkol.4)]]","v":0}]
[116,"Kopanie rowów dla kabli w sposób mechaniczny w gruncie\nkat. III-IV",20,null,{"$f":"Tabela1[[#This Row],[Cena jedn. netto]]*Tabela1[[#This Row],[Ilość ]]","v":0},{"$f":"Tabela1[[#This Row],[Netto (kol.3xkol.4)]]*Tabela1[[#This Row],[% VAT]]","v":0},{"$f":"Tabela1[[#This Row],[Kwota VAT]]+Tabela1[[#This Row],[Netto (kol.3xkol.4)]]","v":0}]
[117,"Nasypanie warstwy piasku na dnie rowu kablowego o szerokoścido 0,4 m",126,null,{"$f":"Tabela1[[#This Row],[Cena jedn. netto]]*Tabela1[[#This Row],[Ilość ]]","v":0},{"$f":"Tabela1[[#This Row],[Netto (kol.3xkol.4)]]*Tabela1[[#This Row],[% VAT]]","v":0},{"$f":"Tabela1[[#This Row],[Kwota VAT]]+Tabela1[[#This Row],[Netto (kol.3xkol.4)]]","v":0}]
[118,"Układanie kabli o masie do 0.5 kg/m w rowach kablowych ręcznie",155,null,{"$f":"Tabela1[[#This Row],[Cena jedn. netto]]*Tabela1[[#This Row],[Ilość ]]","v":0},{"$f":"Tabela1[[#This Row],[Netto (kol.3xkol.4)]]*Tabela1[[#This Row],[% VAT]]","v":0},{"$f":"Tabela1[[#This Row],[Kwota VAT]]+Tabela1[[#This Row],[Netto (kol.3xkol.4)]]","v":0}]
[119,"Zasypywanie rowów dla kabli wykonanych mechanicznie\nw gruncie kat. III-IV",14.6,null,{"$f":"Tabela1[[#This Row],[Cena jedn. netto]]*Tabela1[[#This Row],[Ilość ]]","v":0},{"$f":"Tabela1[[#This Row],[Netto (kol.3xkol.4)]]*Tabela1[[#This Row],[% VAT]]","v":0},{"$f":"Tabela1[[#This Row],[Kwota VAT]]+Tabela1[[#This Row],[Netto (kol.3xkol.4)]]","v":0}]
[120,"Demontaż kabli wielożyłowych o masie do 2.0 kg/m ukladanych w gruncie kat. III-IV",35,null,{"$f":"Tabela1[[#This Row],[Cena jedn. netto]]*Tabela1[[#This Row],[Ilość ]]","v":0},{"$f":"Tabela1[[#This Row],[Netto (kol.3xkol.4)]]*Tabela1[[#This Row],[% VAT]]","v":0},{"$f":"Tabela1[[#This Row],[Kwota VAT]]+Tabela1[[#This Row],[Netto (kol.3xkol.4)]]","v":0}]
[121,"Demontaż słupów oświetleniowych o masie do 100 kg",2,null,{"$f":"Tabela1[[#This Row],[Cena jedn. netto]]*Tabela1[[#This Row],[Ilość ]]","v":0},{"$f":"Tabela1[[#This Row],[Netto (kol.3xkol.4)]]*Tabela1[[#This Row],[% VAT]]","v":0},{"$f":"Tabela1[[#This Row],[Kwota VAT]]+Tabela1[[#This Row],[Netto (kol.3xkol.4)]]","v":0}]
[122,"Pomiar rezystancji izolacji instalacji elektrycznej",1,null,{"$f":"Tabela1[[#This Row],[Cena jedn. netto]]*Tabela1[[#This Row],[Ilość ]]","v":0},{"$f":"Tabela1[[#This Row],[Netto (kol.3xkol.4)]]*Tabela1[[#This Row],[% VAT]]","v":0},{"$f":"Tabela1[[#This Row],[Kwota VAT]]+Tabela1[[#This Row],[Netto (kol.3xkol.4)]]","v":0}]
[123,"Sprawdzenie samoczynnego wyłączenia zasilania -\npomiar impedancji pętli zwarciowej",1,null,{"$f":"Tabela1[[#This Row],[Cena jedn. netto]]*Tabela1[[#This Row],[Ilość ]]","v":0},{"$f":"Tabela1[[#This Row],[Netto (kol.3xkol.4)]]*Tabela1[[#This Row],[% VAT]]","v":0},{"$f":"Tabela1[[#This Row],[Kwota VAT]]+Tabela1[[#This Row],[Netto (kol.3xkol.4)]]","v":0}]
[124,"Badania i pomiary  instalacji uziemiającej",3,null,{"$f":"Tabela1[[#This Row],[Cena jedn. netto]]*Tabela1[[#This Row],[Ilość ]]","v":0},{"$f":"Tabela1[[#This Row],[Netto (kol.3xkol.4)]]*Tabela1[[#This Row],[% VAT]]","v":0},{"$f":"Tabela1[[#This Row],[Kwota VAT]]+Tabela1[[#This Row],[Netto (kol.3xkol.4)]]","v":0}]
[null,null,null,"Razem",{"$f":"SUBTOTAL(109,Tabela1[Netto (kol.3xkol.4)])","v":0},"Razem",{"$f":"SUBTOTAL(109,Tabela1[Brutto (kol.5+kol.6)])","v":0}]